[Event "Late-Titled-Tuesday-Blitz-February-06-2024"]
[Site "Chess.com"]
[Date "2024.02.06"]
[Round "4"]
[White "reigningmvp"]
[Black "AmanteDeMoi"]
[Result "0-1"]
[WhiteElo "2382"]
[BlackElo "2594"]
[TimeControl "180+1"]
[EndTime "14:36:56 PST"]
[Termination "AmanteDeMoi won by resignation"]

1. e4 {[%clk 0:03:00.9]} 1... g6 {[%clk 0:02:48.2]} 2. Nc3 {[%clk 0:02:59.1]}
2... Bg7 {[%clk 0:02:49.1]} 3. f4 {[%clk 0:02:59.3]} 3... c6 {[%clk 0:02:50]} 4.
h3 {[%clk 0:02:59.1]} 4... d5 {[%clk 0:02:50.9]} 5. e5 {[%clk 0:02:59.4]} 5...
h5 {[%clk 0:02:48.4]} 6. Nf3 {[%clk 0:02:56]} 6... Nh6 {[%clk 0:02:49.1]} 7. d4
{[%clk 0:02:56.2]} 7... Nf5 {[%clk 0:02:48]} 8. Bd3 {[%clk 0:02:48.8]} 8... Ng3
{[%clk 0:02:48.3]} 9. Rg1 {[%clk 0:02:47.1]} 9... Bf5 {[%clk 0:02:48.9]} 10. Be3
{[%clk 0:02:44.4]} 10... Bxd3 {[%clk 0:02:48.6]} 11. Qxd3 {[%clk 0:02:44.2]}
11... e6 {[%clk 0:02:49.5]} 12. Bf2 {[%clk 0:02:44.2]} 12... h4 {[%clk 0:02:49]}
13. Bxg3 {[%clk 0:02:41.9]} 13... hxg3 {[%clk 0:02:49.1]} 14. O-O-O {[%clk
0:02:42.5]} 14... Bh6 {[%clk 0:02:49.2]} 15. Ne2 {[%clk 0:02:40.2]} 15... Nd7
{[%clk 0:02:46.5]} 16. Kb1 {[%clk 0:02:38.9]} 16... c5 {[%clk 0:02:45.9]} 17. c3
{[%clk 0:02:39.1]} 17... c4 {[%clk 0:02:45.3]} 18. Qe3 {[%clk 0:02:36.1]} 18...
b5 {[%clk 0:02:46.2]} 19. Nxg3 {[%clk 0:02:35.9]} 19... a5 {[%clk 0:02:46]} 20.
Ng5 {[%clk 0:02:31.5]} 20... b4 {[%clk 0:02:45]} 21. Ka1 {[%clk 0:02:30.5]}
21... b3 {[%clk 0:02:44.3]} 22. a3 {[%clk 0:02:29.7]} 22... Nb6 {[%clk
0:02:40.2]} 23. h4 {[%clk 0:02:27.9]} 23... Bf8 {[%clk 0:02:39.9]} 24. Rh1
{[%clk 0:02:19.3]} 24... Bxa3 {[%clk 0:02:40.5]} 25. bxa3 {[%clk 0:02:19.3]}
25... Qe7 {[%clk 0:02:41.2]} 26. Qf2 {[%clk 0:01:52.2]} 26... Qxa3+ {[%clk
0:02:34.1]} 27. Kb1 {[%clk 0:01:52.2]} 27... Na4 {[%clk 0:02:34.7]} 28. Qd2
{[%clk 0:01:33.3]} 28... Rb8 {[%clk 0:02:26.1]} 29. h5 {[%clk 0:01:32.5]} 29...
b2 {[%clk 0:02:26.3]} 30. hxg6 {[%clk 0:01:30.4]} 30... Qa1+ {[%clk 0:02:13.3]}
31. Kc2 {[%clk 0:01:30.3]} 31... b1=Q+ {[%clk 0:02:13.7]} 32. Rxb1 {[%clk
0:01:29.9]} 32... Qa2+ {[%clk 0:02:14.3]} 33. Kd1 {[%clk 0:01:15.6]} 33... Rxh1+
{[%clk 0:02:14.7]} 34. Nxh1 {[%clk 0:01:14.2]} 34... Rxb1+ {[%clk 0:02:10.5]}
35. Ke2 {[%clk 0:01:14.7]} 35... Nxc3+ {[%clk 0:02:09.2]} 36. Ke3 {[%clk
0:01:13.6]} 36... Nd1+ {[%clk 0:02:09.3]} 37. Ke2 {[%clk 0:01:05.4]} 37... Rb2
{[%clk 0:02:07.8]} 38. g7 {[%clk 0:01:00.8]} 38... Rxd2+ {[%clk 0:02:06.2]} 39.
Kf3 {[%clk 0:01:01.2]} 39... Qb3+ {[%clk 0:02:02.7]} 40. Kg4 {[%clk 0:01:01.2]}
40... Rxg2+ {[%clk 0:02:03.4]} 41. Kh4 {[%clk 0:00:54.2]} 41... Rh2+ {[%clk
0:02:00.5]} 42. Kg4 {[%clk 0:00:54.4]} 42... Ne3+ {[%clk 0:02:01]} 43. Kg3
{[%clk 0:00:54]} 43... Nf1+ {[%clk 0:02:01.5]} 44. Kg4 {[%clk 0:00:51.9]} 44...
Qd1+ {[%clk 0:02:01.7]} 45. Nf3 {[%clk 0:00:51.2]} 45... Rg2+ {[%clk 0:02:02.3]}
46. Kh4 {[%clk 0:00:50.1]} 46... Rxg7 {[%clk 0:02:02.8]} 0-1

[Event "Late-Titled-Tuesday-Blitz-February-06-2024"]
[Site "Chess.com"]
[Date "2024.02.06"]
[Round "4"]
[White "OglazaOskar2005"]
[Black "Jospem"]
[Result "0-1"]
[WhiteElo "2618"]
[BlackElo "3041"]
[TimeControl "180+1"]
[EndTime "14:37:03 PST"]
[Termination "Jospem won by resignation"]

1. e4 {[%clk 0:03:00.9]} 1... c5 {[%clk 0:02:59.6]} 2. Nf3 {[%clk 0:02:59.8]}
2... d6 {[%clk 0:03:00.2]} 3. d4 {[%clk 0:03:00]} 3... cxd4 {[%clk 0:03:01.1]}
4. Nxd4 {[%clk 0:03:00.2]} 4... a6 {[%clk 0:03:02]} 5. Be3 {[%clk 0:02:42.9]}
5... e6 {[%clk 0:03:01.7]} 6. Nc3 {[%clk 0:02:37.7]} 6... Nf6 {[%clk 0:03:01]}
7. h3 {[%clk 0:02:37.1]} 7... h5 {[%clk 0:03:01.1]} 8. g3 {[%clk 0:02:25]} 8...
Bd7 {[%clk 0:03:00]} 9. Bg2 {[%clk 0:02:24.9]} 9... Nc6 {[%clk 0:03:00.7]} 10.
O-O {[%clk 0:02:20]} 10... Be7 {[%clk 0:03:00.9]} 11. Qe2 {[%clk 0:02:18.6]}
11... Rc8 {[%clk 0:03:00.2]} 12. Rad1 {[%clk 0:02:17.7]} 12... Ne5 {[%clk
0:03:00.6]} 13. Kh1 {[%clk 0:01:58.2]} 13... Qc7 {[%clk 0:02:59.2]} 14. f4
{[%clk 0:01:56.2]} 14... Nc4 {[%clk 0:02:59.5]} 15. Bc1 {[%clk 0:01:56.5]} 15...
b5 {[%clk 0:02:57.6]} 16. b3 {[%clk 0:01:49.4]} 16... Nb6 {[%clk 0:02:57.9]} 17.
Bb2 {[%clk 0:01:48.2]} 17... b4 {[%clk 0:02:55.5]} 18. Nb1 {[%clk 0:01:48.1]}
18... d5 {[%clk 0:02:47.7]} 19. Nd2 {[%clk 0:01:44.7]} 19... dxe4 {[%clk
0:02:45.8]} 20. Nxe4 {[%clk 0:01:43.8]} 20... Nbd5 {[%clk 0:02:33.6]} 21. Nxf6+
{[%clk 0:00:50.2]} 21... Nxf6 {[%clk 0:02:34.5]} 22. Rf2 {[%clk 0:00:40.2]}
22... O-O {[%clk 0:02:31.6]} 23. f5 {[%clk 0:00:36.9]} 23... e5 {[%clk
0:02:31.4]} 24. Nf3 {[%clk 0:00:36]} 24... e4 {[%clk 0:02:31.9]} 25. Ne5 {[%clk
0:00:34.4]} 25... Bb5 {[%clk 0:02:32.1]} 26. Qe3 {[%clk 0:00:26.9]} 26... Rfd8
{[%clk 0:02:25.4]} 27. Rfd2 {[%clk 0:00:26.2]} 27... Rxd2 {[%clk 0:02:24.4]} 28.
Rxd2 {[%clk 0:00:27.1]} 28... Bd6 {[%clk 0:02:23.6]} 29. Rxd6 {[%clk 0:00:15.3]}
29... Qxd6 {[%clk 0:02:22.3]} 30. Bd4 {[%clk 0:00:14.7]} 30... Rd8 {[%clk
0:02:20.3]} 31. c3 {[%clk 0:00:13.6]} 31... bxc3 {[%clk 0:02:20.5]} 32. Bxc3
{[%clk 0:00:14.5]} 32... Nd5 {[%clk 0:02:16.6]} 33. Qd4 {[%clk 0:00:13.6]} 33...
Nxc3 {[%clk 0:02:16.1]} 34. Qxc3 {[%clk 0:00:14.5]} 34... Qd4 {[%clk 0:02:14.6]}
35. Qc7 {[%clk 0:00:14.2]} 35... Rf8 {[%clk 0:02:12.2]} 36. f6 {[%clk
0:00:14.5]} 36... gxf6 {[%clk 0:02:11.4]} 37. Nc6 {[%clk 0:00:14.8]} 37... Bxc6
{[%clk 0:02:10.7]} 38. Qxc6 {[%clk 0:00:15.4]} 38... e3 {[%clk 0:02:07.2]} 39.
Qf3 {[%clk 0:00:15.8]} 39... Rd8 {[%clk 0:02:07.1]} 40. Qxh5 {[%clk 0:00:16.1]}
40... Qd1+ {[%clk 0:02:07.8]} 41. Qxd1 {[%clk 0:00:15.5]} 41... Rxd1+ {[%clk
0:02:08.7]} 0-1

[Event "Late-Titled-Tuesday-Blitz-February-06-2024"]
[Site "Chess.com"]
[Date "2024.02.06"]
[Round "4"]
[White "karinachess1"]
[Black "Yushko_Olga"]
[Result "1-0"]
[WhiteElo "2662"]
[BlackElo "2224"]
[TimeControl "180+1"]
[EndTime "14:37:09 PST"]
[Termination "karinachess1 won by resignation"]

1. d4 {[%clk 0:03:00.9]} 1... e6 {[%clk 0:02:59.4]} 2. c4 {[%clk 0:03:01]} 2...
Nf6 {[%clk 0:02:59.5]} 3. Nc3 {[%clk 0:03:01.3]} 3... d5 {[%clk 0:02:59.6]} 4.
cxd5 {[%clk 0:03:01.7]} 4... exd5 {[%clk 0:02:59.8]} 5. Bg5 {[%clk 0:03:01.9]}
5... Nbd7 {[%clk 0:02:52]} 6. e3 {[%clk 0:03:02.2]} 6... Be7 {[%clk 0:02:50.9]}
7. Bd3 {[%clk 0:03:00.2]} 7... O-O {[%clk 0:02:50.3]} 8. Qc2 {[%clk 0:02:58.1]}
8... h6 {[%clk 0:02:49.6]} 9. Bh4 {[%clk 0:02:58.5]} 9... c6 {[%clk 0:02:44.6]}
10. Nf3 {[%clk 0:02:57.9]} 10... Ng4 {[%clk 0:02:39.6]} 11. Bxe7 {[%clk
0:02:55.7]} 11... Qxe7 {[%clk 0:02:40.5]} 12. O-O {[%clk 0:02:56.2]} 12... Nb6
{[%clk 0:02:30.3]} 13. Rab1 {[%clk 0:02:55.9]} 13... Be6 {[%clk 0:02:22.1]} 14.
h3 {[%clk 0:02:53.2]} 14... Nf6 {[%clk 0:02:21.9]} 15. Ne5 {[%clk 0:02:53.9]}
15... Nfd7 {[%clk 0:02:03.9]} 16. f4 {[%clk 0:02:53.3]} 16... Nxe5 {[%clk
0:02:00]} 17. dxe5 {[%clk 0:02:46]} 17... Rad8 {[%clk 0:01:54.2]} 18. Qf2 {[%clk
0:02:35.7]} 18... f5 {[%clk 0:01:47.8]} 19. Ne2 {[%clk 0:02:24.4]} 19... Nc4
{[%clk 0:01:45.5]} 20. Nd4 {[%clk 0:02:19.3]} 20... c5 {[%clk 0:01:43.2]} 21.
Nxe6 {[%clk 0:02:07.4]} 21... Qxe6 {[%clk 0:01:42.7]} 22. Rbc1 {[%clk
0:02:06.8]} 22... Nxb2 {[%clk 0:01:39.3]} 23. Qxb2 {[%clk 0:02:06.3]} 23... c4
{[%clk 0:01:36.9]} 24. Be2 {[%clk 0:02:06.7]} 24... b6 {[%clk 0:01:33.5]} 25.
Qd4 {[%clk 0:02:05.6]} 25... Rfe8 {[%clk 0:01:28.3]} 26. Bf3 {[%clk 0:02:06]}
26... Re7 {[%clk 0:01:22.6]} 27. Rxc4 {[%clk 0:02:05.8]} 27... Red7 {[%clk
0:01:11.9]} 28. Rc3 {[%clk 0:02:05.9]} 28... g5 {[%clk 0:01:11]} 29. Rfc1 {[%clk
0:02:02.3]} 29... gxf4 {[%clk 0:01:08.8]} 30. Rc6 {[%clk 0:02:02.5]} 30... Qe7
{[%clk 0:01:04.6]} 31. Qxf4 {[%clk 0:01:57.4]} 31... d4 {[%clk 0:00:58.9]} 32.
Qxh6 {[%clk 0:01:55.2]} 32... Qh7 {[%clk 0:00:37]} 33. Qg5+ {[%clk 0:01:51.5]}
33... Kf8 {[%clk 0:00:33.5]} 34. Rf6+ {[%clk 0:01:49.8]} 34... Ke8 {[%clk
0:00:33.5]} 35. Bh5+ {[%clk 0:01:49.2]} 35... Ke7 {[%clk 0:00:32]} 36. Rf7+
{[%clk 0:01:48.9]} 1-0

[Event "Late-Titled-Tuesday-Blitz-February-06-2024"]
[Site "Chess.com"]
[Date "2024.02.06"]
[Round "4"]
[White "ATM622"]
[Black "Anna20240"]
[Result "1-0"]
[WhiteElo "2446"]
[BlackElo "1899"]
[TimeControl "180+1"]
[EndTime "14:37:12 PST"]
[Termination "ATM622 won by checkmate"]

1. d4 {[%clk 0:02:58.9]} 1... d5 {[%clk 0:02:58.9]} 2. c4 {[%clk 0:02:59.3]}
2... e6 {[%clk 0:02:52.9]} 3. Nf3 {[%clk 0:02:59.4]} 3... Nf6 {[%clk 0:02:49.7]}
4. g3 {[%clk 0:02:59.2]} 4... c5 {[%clk 0:02:47.7]} 5. cxd5 {[%clk 0:02:58.6]}
5... exd5 {[%clk 0:02:39.9]} 6. Bg2 {[%clk 0:02:58.6]} 6... Nc6 {[%clk
0:02:36.3]} 7. O-O {[%clk 0:02:58.7]} 7... cxd4 {[%clk 0:02:30.4]} 8. Nxd4
{[%clk 0:02:59.6]} 8... Bc5 {[%clk 0:02:30.4]} 9. Nxc6 {[%clk 0:02:58.2]} 9...
bxc6 {[%clk 0:02:30.4]} 10. a3 {[%clk 0:02:58.6]} 10... O-O {[%clk 0:02:27.8]}
11. b4 {[%clk 0:02:58.4]} 11... Bb6 {[%clk 0:02:24]} 12. Bb2 {[%clk 0:02:58.8]}
12... Re8 {[%clk 0:02:16.4]} 13. Nd2 {[%clk 0:02:58.9]} 13... Bg4 {[%clk
0:02:05.1]} 14. Nf3 {[%clk 0:02:57.7]} 14... Qe7 {[%clk 0:01:03.5]} 15. Ne5
{[%clk 0:02:54.3]} 15... Rac8 {[%clk 0:00:54.6]} 16. Rc1 {[%clk 0:02:51.9]}
16... Bd7 {[%clk 0:00:53.2]} 17. Nxd7 {[%clk 0:02:46.2]} 17... Nxd7 {[%clk
0:00:48.9]} 18. e3 {[%clk 0:02:46.2]} 18... Ne5 {[%clk 0:00:47]} 19. Bd4 {[%clk
0:02:44.5]} 19... Nc4 {[%clk 0:00:45.8]} 20. Bh3 {[%clk 0:02:36]} 20... Rcd8
{[%clk 0:00:35.6]} 21. Qd3 {[%clk 0:02:32.2]} 21... Qe4 {[%clk 0:00:22.2]} 22.
Qxe4 {[%clk 0:02:23.7]} 22... Rxe4 {[%clk 0:00:20]} 23. Bg2 {[%clk 0:02:20.9]}
23... Ree8 {[%clk 0:00:19]} 24. Rfd1 {[%clk 0:02:16.6]} 24... Nxa3 {[%clk
0:00:18.7]} 25. Bxb6 {[%clk 0:02:14.6]} 25... axb6 {[%clk 0:00:18]} 26. Rxc6
{[%clk 0:02:15]} 26... Nc4 {[%clk 0:00:17.4]} 27. Rxd5 {[%clk 0:02:14.4]} 27...
Rxd5 {[%clk 0:00:16.4]} 28. Bxd5 {[%clk 0:02:15.3]} 28... Ne5 {[%clk 0:00:15.8]}
29. Rc7 {[%clk 0:02:15.5]} 29... Rd8 {[%clk 0:00:14.2]} 30. e4 {[%clk
0:02:15.4]} 30... g5 {[%clk 0:00:11.3]} 31. f4 {[%clk 0:02:15.4]} 31... gxf4
{[%clk 0:00:10.4]} 32. gxf4 {[%clk 0:02:16.3]} 32... Nf3+ {[%clk 0:00:10.2]} 33.
Kg2 {[%clk 0:02:16.6]} 33... Nh4+ {[%clk 0:00:10.2]} 34. Kg3 {[%clk 0:02:16.2]}
34... Ng6 {[%clk 0:00:10]} 35. Bxf7+ {[%clk 0:02:16.5]} 35... Kh8 {[%clk
0:00:09.9]} 36. Bxg6 {[%clk 0:02:16.7]} 36... hxg6 {[%clk 0:00:10]} 37. Kg4
{[%clk 0:02:14.5]} 37... Rd1 {[%clk 0:00:09.1]} 38. Kg5 {[%clk 0:02:14.3]} 38...
Rg1+ {[%clk 0:00:09]} 39. Kh6 {[%clk 0:02:14.5]} 39... Rg2 {[%clk 0:00:09.4]}
40. Rc8# {[%clk 0:02:14.4]} 1-0

[Event "Late-Titled-Tuesday-Blitz-February-06-2024"]
[Site "Chess.com"]
[Date "2024.02.06"]
[Round "4"]
[White "JackRodgers"]
[Black "Adar_07"]
[Result "1-0"]
[WhiteElo "2518"]
[BlackElo "2707"]
[TimeControl "180+1"]
[EndTime "14:37:15 PST"]
[Termination "JackRodgers won by resignation"]

1. d4 {[%clk 0:03:00.9]} 1... Nf6 {[%clk 0:02:55.7]} 2. Bg5 {[%clk 0:03:00.5]}
2... Ne4 {[%clk 0:02:55.2]} 3. Bh4 {[%clk 0:02:59.6]} 3... d5 {[%clk 0:02:49.8]}
4. f3 {[%clk 0:02:56.8]} 4... Nd6 {[%clk 0:02:49.7]} 5. Nc3 {[%clk 0:02:55.9]}
5... c6 {[%clk 0:02:42.6]} 6. e4 {[%clk 0:02:55.7]} 6... dxe4 {[%clk 0:02:39.2]}
7. fxe4 {[%clk 0:02:56.2]} 7... Qb6 {[%clk 0:02:39.5]} 8. Rb1 {[%clk 0:02:34.2]}
8... Nd7 {[%clk 0:02:31.9]} 9. Nf3 {[%clk 0:02:30.5]} 9... g6 {[%clk 0:02:22.4]}
10. Bf2 {[%clk 0:02:28.5]} 10... Bg7 {[%clk 0:02:22.2]} 11. e5 {[%clk
0:02:25.2]} 11... Nf5 {[%clk 0:02:20.4]} 12. g4 {[%clk 0:02:17.9]} 12... Nh6
{[%clk 0:02:16.4]} 13. h3 {[%clk 0:02:15]} 13... O-O {[%clk 0:02:12.8]} 14. Bc4
{[%clk 0:02:13.7]} 14... Qc7 {[%clk 0:01:57.5]} 15. Qd2 {[%clk 0:02:08.3]} 15...
Nb6 {[%clk 0:01:57]} 16. Bb3 {[%clk 0:02:06.3]} 16... Kh8 {[%clk 0:01:51.9]} 17.
Be3 {[%clk 0:02:04.8]} 17... Ng8 {[%clk 0:01:51.5]} 18. Ng5 {[%clk 0:02:01.8]}
18... e6 {[%clk 0:01:44.5]} 19. O-O {[%clk 0:01:59.7]} 19... Nd5 {[%clk
0:01:40.6]} 20. Nxd5 {[%clk 0:01:51.5]} 20... exd5 {[%clk 0:01:39]} 21. c3
{[%clk 0:01:47.3]} 21... Be6 {[%clk 0:01:38]} 22. Rf2 {[%clk 0:01:44.8]} 22...
h6 {[%clk 0:01:33.5]} 23. Nxe6 {[%clk 0:01:39]} 23... fxe6 {[%clk 0:01:34.4]}
24. Rbf1 {[%clk 0:01:36.1]} 24... Rxf2 {[%clk 0:01:33.6]} 25. Rxf2 {[%clk
0:01:37]} 25... Rf8 {[%clk 0:01:33.9]} 26. Bc2 {[%clk 0:01:37.4]} 26... Rxf2
{[%clk 0:01:33.3]} 27. Qxf2 {[%clk 0:01:36.8]} 27... Kh7 {[%clk 0:01:03.4]} 28.
h4 {[%clk 0:01:35.3]} 28... c5 {[%clk 0:01:01.4]} 29. h5 {[%clk 0:01:33.6]}
29... cxd4 {[%clk 0:01:01.6]} 30. Bxg6+ {[%clk 0:01:21.5]} 30... Kh8 {[%clk
0:01:01.3]} 31. cxd4 {[%clk 0:01:22.4]} 31... Ne7 {[%clk 0:00:56.8]} 32. Qf7
{[%clk 0:01:18.1]} 32... Qd7 {[%clk 0:00:48.8]} 33. Bxh6 {[%clk 0:01:14.6]} 1-0

[Event "Late-Titled-Tuesday-Blitz-February-06-2024"]
[Site "Chess.com"]
[Date "2024.02.06"]
[Round "4"]
[White "Arteler"]
[Black "tactic"]
[Result "1-0"]
[WhiteElo "2515"]
[BlackElo "2651"]
[TimeControl "180+1"]
[EndTime "14:37:20 PST"]
[Termination "Arteler won by resignation"]

1. e4 {[%clk 0:02:59.8]} 1... d5 {[%clk 0:02:59.6]} 2. exd5 {[%clk 0:02:59.8]}
2... c6 {[%clk 0:03:00.1]} 3. dxc6 {[%clk 0:02:58.3]} 3... Nxc6 {[%clk 0:03:01]}
4. Nf3 {[%clk 0:02:58.9]} 4... e5 {[%clk 0:03:01.6]} 5. Bb5 {[%clk 0:02:57]}
5... Bd6 {[%clk 0:03:01.3]} 6. d4 {[%clk 0:02:56.9]} 6... exd4 {[%clk
0:03:01.6]} 7. Nxd4 {[%clk 0:02:53.4]} 7... Ne7 {[%clk 0:03:01.8]} 8. Nxc6
{[%clk 0:02:49.9]} 8... bxc6 {[%clk 0:03:02.7]} 9. Bd3 {[%clk 0:02:49.7]} 9...
O-O {[%clk 0:03:03.4]} 10. O-O {[%clk 0:02:49.9]} 10... Ng6 {[%clk 0:03:03.7]}
11. Nd2 {[%clk 0:02:41.2]} 11... Re8 {[%clk 0:03:01.2]} 12. Qh5 {[%clk
0:02:36.1]} 12... Re5 {[%clk 0:03:00.7]} 13. Qd1 {[%clk 0:02:30.7]} 13... Rd5
{[%clk 0:02:27.6]} 14. Nf3 {[%clk 0:02:16.9]} 14... Bg4 {[%clk 0:02:26.1]} 15.
h3 {[%clk 0:02:16.4]} 15... Bf5 {[%clk 0:02:21.4]} 16. Bg5 {[%clk 0:02:07.5]}
16... Qd7 {[%clk 0:02:14.6]} 17. Bxf5 {[%clk 0:01:54]} 17... Qxf5 {[%clk
0:02:15.5]} 18. Qe2 {[%clk 0:01:54.7]} 18... f6 {[%clk 0:01:46.3]} 19. c4 {[%clk
0:01:43.1]} 19... Rd3 {[%clk 0:01:27.8]} 20. Rfd1 {[%clk 0:01:43]} 20... Rxd1+
{[%clk 0:01:18]} 21. Rxd1 {[%clk 0:01:43.9]} 21... Bc5 {[%clk 0:01:14.2]} 22.
Be3 {[%clk 0:01:42.8]} 22... Re8 {[%clk 0:01:14.8]} 23. Qd3 {[%clk 0:01:36.9]}
23... Qh5 {[%clk 0:00:48.3]} 24. Qd7 {[%clk 0:01:15.8]} 24... Nf8 {[%clk
0:00:38.9]} 25. Qxc6 {[%clk 0:01:01.6]} 25... Bxe3 {[%clk 0:00:37.8]} 26. fxe3
{[%clk 0:01:01.9]} 26... Qh6 {[%clk 0:00:32.9]} 27. Qxe8 {[%clk 0:01:00.4]} 1-0

[Event "Late-Titled-Tuesday-Blitz-February-06-2024"]
[Site "Chess.com"]
[Date "2024.02.06"]
[Round "4"]
[White "topce"]
[Black "CaspiIsrael"]
[Result "0-1"]
[WhiteElo "2397"]
[BlackElo "2680"]
[TimeControl "180+1"]
[EndTime "14:37:28 PST"]
[Termination "CaspiIsrael won on time"]

1. c4 {[%clk 0:03:00.9]} 1... e5 {[%clk 0:02:59.2]} 2. Nc3 {[%clk 0:03:00]} 2...
Nf6 {[%clk 0:02:58.8]} 3. Nf3 {[%clk 0:02:56.6]} 3... Nc6 {[%clk 0:02:59]} 4. d3
{[%clk 0:02:55.8]} 4... d5 {[%clk 0:02:58.6]} 5. cxd5 {[%clk 0:02:56.7]} 5...
Nxd5 {[%clk 0:02:59.4]} 6. e4 {[%clk 0:02:56.1]} 6... Nb6 {[%clk 0:02:59.7]} 7.
Be2 {[%clk 0:02:55.7]} 7... Be7 {[%clk 0:03:00.1]} 8. O-O {[%clk 0:02:54.6]}
8... O-O {[%clk 0:03:00.7]} 9. Be3 {[%clk 0:02:54.8]} 9... Kh8 {[%clk 0:03:01]}
10. a4 {[%clk 0:02:54.3]} 10... a5 {[%clk 0:02:58.4]} 11. Bxb6 {[%clk
0:02:42.2]} 11... cxb6 {[%clk 0:02:58.4]} 12. h3 {[%clk 0:02:40.8]} 12... Be6
{[%clk 0:02:56.9]} 13. Nb5 {[%clk 0:02:35.1]} 13... Bc5 {[%clk 0:02:55.8]} 14.
Nd2 {[%clk 0:02:30.7]} 14... Nd4 {[%clk 0:02:53.6]} 15. Nc4 {[%clk 0:02:30.3]}
15... Bxc4 {[%clk 0:02:48.3]} 16. dxc4 {[%clk 0:02:24.8]} 16... Qh4 {[%clk
0:02:48.2]} 17. Nxd4 {[%clk 0:02:16.1]} 17... Bxd4 {[%clk 0:02:47.7]} 18. Bd3
{[%clk 0:01:43.9]} 18... Bxb2 {[%clk 0:02:41.7]} 19. Rb1 {[%clk 0:01:43.3]}
19... Bd4 {[%clk 0:02:42.3]} 20. Qf3 {[%clk 0:01:43.4]} 20... Rad8 {[%clk
0:02:40.3]} 21. Rfd1 {[%clk 0:01:40.5]} 21... Rd6 {[%clk 0:02:40.2]} 22. Qg4
{[%clk 0:01:39]} 22... Qxf2+ {[%clk 0:02:35.7]} 23. Kh1 {[%clk 0:01:38.4]} 23...
Rg6 {[%clk 0:02:35.8]} 24. Qf3 {[%clk 0:01:37.9]} 24... Qxf3 {[%clk 0:02:35.6]}
25. gxf3 {[%clk 0:01:37.8]} 25... Rg3 {[%clk 0:02:36.2]} 26. Bf1 {[%clk
0:01:26.3]} 26... Rxf3 {[%clk 0:02:35.2]} 27. Bg2 {[%clk 0:01:26.9]} 27... Rc3
{[%clk 0:02:34.8]} 28. Rdc1 {[%clk 0:01:26.7]} 28... Ra3 {[%clk 0:02:34.4]} 29.
c5 {[%clk 0:01:15.5]} 29... Bxc5 {[%clk 0:02:33.2]} 30. Rc4 {[%clk 0:01:14.5]}
30... g6 {[%clk 0:02:32.3]} 31. Rd1 {[%clk 0:01:10.9]} 31... Kg7 {[%clk
0:02:32.6]} 32. Rd7 {[%clk 0:01:10]} 32... h5 {[%clk 0:02:23.1]} 33. Bf1 {[%clk
0:00:55.7]} 33... Re8 {[%clk 0:02:15.6]} 34. Bd3 {[%clk 0:00:36.7]} 34... Re6
{[%clk 0:02:14.5]} 35. Rc2 {[%clk 0:00:14.4]} 35... Rf6 {[%clk 0:02:14.1]} 36.
Bb5 {[%clk 0:00:11.6]} 36... Rxh3+ {[%clk 0:02:13]} 37. Kg2 {[%clk 0:00:11.5]}
37... Rh4 {[%clk 0:02:11.4]} 38. Rxc5 {[%clk 0:00:07.6]} 38... bxc5 {[%clk
0:02:09.2]} 39. Rxb7 {[%clk 0:00:08.4]} 39... Rg4+ {[%clk 0:02:08.3]} 40. Kh3
{[%clk 0:00:08.1]} 40... Rf3+ {[%clk 0:02:07.6]} 41. Kh2 {[%clk 0:00:08]} 41...
Rf2+ {[%clk 0:02:06.2]} 42. Kh3 {[%clk 0:00:07.8]} 42... Rxe4 {[%clk 0:02:06.4]}
43. Bc6 {[%clk 0:00:07.5]} 43... Re3+ {[%clk 0:02:06.5]} 44. Kh4 {[%clk
0:00:07.2]} 44... Rf4+ {[%clk 0:02:06.8]} 0-1

[Event "Late-Titled-Tuesday-Blitz-February-06-2024"]
[Site "Chess.com"]
[Date "2024.02.06"]
[Round "4"]
[White "olawsson"]
[Black "abfchess"]
[Result "0-1"]
[WhiteElo "2158"]
[BlackElo "2323"]
[TimeControl "180+1"]
[EndTime "14:37:31 PST"]
[Termination "abfchess won on time"]

1. d4 {[%clk 0:02:57.8]} 1... d5 {[%clk 0:02:59.8]} 2. c4 {[%clk 0:02:56.7]}
2... e6 {[%clk 0:02:59.5]} 3. Nc3 {[%clk 0:02:56.7]} 3... a6 {[%clk 0:02:58.6]}
4. Nf3 {[%clk 0:02:47.4]} 4... Nf6 {[%clk 0:02:55.7]} 5. Bg5 {[%clk 0:02:43.8]}
5... h6 {[%clk 0:02:54.8]} 6. Bh4 {[%clk 0:02:42.1]} 6... dxc4 {[%clk
0:02:43.7]} 7. e4 {[%clk 0:02:41.4]} 7... b5 {[%clk 0:02:43.3]} 8. e5 {[%clk
0:02:01.1]} 8... g5 {[%clk 0:02:42.3]} 9. Bg3 {[%clk 0:01:45.9]} 9... Nd5 {[%clk
0:02:40.5]} 10. h4 {[%clk 0:01:42.3]} 10... g4 {[%clk 0:02:37.7]} 11. Nd2 {[%clk
0:01:39.9]} 11... h5 {[%clk 0:02:37.3]} 12. Nde4 {[%clk 0:01:40.2]} 12... Be7
{[%clk 0:02:33.3]} 13. Be2 {[%clk 0:01:02.1]} 13... Bb7 {[%clk 0:02:22.5]} 14.
a4 {[%clk 0:00:55.3]} 14... Nxc3 {[%clk 0:02:12.3]} 15. Nxc3 {[%clk 0:00:55.4]}
15... Bxg2 {[%clk 0:02:10.4]} 16. Rg1 {[%clk 0:00:50.9]} 16... Bc6 {[%clk
0:02:10.6]} 17. axb5 {[%clk 0:00:49.2]} 17... axb5 {[%clk 0:02:11.5]} 18. Rxa8
{[%clk 0:00:48.6]} 18... Bxa8 {[%clk 0:02:12.4]} 19. Nxb5 {[%clk 0:00:46.6]}
19... c6 {[%clk 0:02:07.5]} 20. Nd6+ {[%clk 0:00:41.7]} 20... Bxd6 {[%clk
0:02:04.3]} 21. exd6 {[%clk 0:00:42.6]} 21... Qa5+ {[%clk 0:02:02.9]} 22. Kf1
{[%clk 0:00:41.3]} 22... Nd7 {[%clk 0:02:02.3]} 23. Bxc4 {[%clk 0:00:33.3]}
23... Qb4 {[%clk 0:01:58.8]} 24. Qb3 {[%clk 0:00:19.6]} 24... Qxb3 {[%clk
0:01:57.9]} 25. Bxb3 {[%clk 0:00:19.9]} 25... c5 {[%clk 0:01:57.6]} 26. Ba4
{[%clk 0:00:15.7]} 26... cxd4 {[%clk 0:01:51.4]} 27. Ke2 {[%clk 0:00:10]} 27...
Bf3+ {[%clk 0:01:46]} 28. Kd2 {[%clk 0:00:09.4]} 28... Kd8 {[%clk 0:01:46.3]}
29. Rc1 {[%clk 0:00:06.6]} 29... Rh7 {[%clk 0:01:39.5]} 30. Rc7 {[%clk 0:00:03]}
30... f5 {[%clk 0:01:39.7]} 31. Be5 {[%clk 0:00:01.9]} 31... Nxe5 {[%clk
0:01:37]} 32. Rxh7 {[%clk 0:00:01.1]} 32... Nc4+ {[%clk 0:01:37.7]} 0-1